Cogmind - Beta 16.1 @@@ ROGUE MODE // 2026.03.01 @ 23:16:25 Player: star Result: Destroyed by D-53 Grenadier with Mini Grenade Launcher Performance ------------- Evolutions (0) 0 Regions Visited (2) 400 Robots Destroyed (11) 55 Value Destroyed (328) 328 Prototype IDs (0) 0 Alien Tech Used (0) 0 Bonus (0) 0 TOTAL SCORE: 783 Bonus ------- None Cogmind --------- Core Integrity 0/250 Matter 300/300 Energy 250/250 System Corruption 0% Temperature Cool (0) Movement Core (350) Ox6 Location -10/Mines Parts ------- > --- POWER (1) -------- Ion Engine > --- PROPULSION (2) --- (None) > --- UTILITY (2) ------ Medium Storage Unit Weapon Shielding > --- WEAPON (2) ------- Particle Gun > --- INVENTORY (10) --- Light Ion Engine Improved Heat Sink Small Storage Unit Medium Matter Pod (24) Experimental Sensor Array Recalibrator Assault Rifle Assault Rifle Assault Rifle Peak State ------------ > --- POWER ------------ Ion Engine > --- PROPULSION ------- Aluminum Leg Aluminum Leg > --- UTILITY ---------- Medium Storage Unit Weapon Shielding > --- WEAPON ----------- Particle Gun Light Cannon > --- INVENTORY -------- Light Ion Engine Improved Heat Sink Small Storage Unit Medium Matter Pod Experimental Sensor Array Weapon Shielding Recalibrator Assault Rifle Assault Rifle Assault Rifle [Rating: 10] Favorites ----------- Power Ion Engine Engine Ion Engine Propulsion Aluminum Leg Leg Aluminum Leg Utility Weapon Shielding Storage Medium Storage Unit Protection Weapon Shielding Weapon Light Cannon Energy Gun Particle Gun Ballistic Gun Assault Rifle Ballistic Cannon Light Cannon Build | -11 -10 -10 ------- Run | Yrd Mat Min Slots Evolved . | . . . Power . | . . . Propulsion . | . . . Utility . | . . . Weapon . | . . . Parts Attached 13 | 6 3 4 Power 2 | 1 . 1 Engine 2 | 1 . 1 Core . | . . . Reactor . | . . . Propulsion 2 | 2 . . Treads . | . . . Leg 2 | 2 . . Wheel . | . . . Hover . | . . . Flight . | . . . Utility 5 | 1 2 2 Device . | . . . Storage 3 | 1 1 1 Processor . | . . . Hackware . | . . . Protection 2 | . 1 1 Artifact . | . . . Weapon 4 | 2 1 1 Energy Gun 1 | . . 1 Energy Cannon . | . . . Ballistic Gun 2 | 2 . . Ballistic Cannon 1 | . 1 . Launcher . | . . . Special Weapon . | . . . Impact Weapon . | . . . Slashing Weapon . | . . . Piercing Weapon . | . . . Special Melee Weapon . | . . . Unidentified Prototypes . | . . . Parts Lost 4 | . . 4 Power . | . . . Propulsion 2 | . . 2 Utility 1 | . . 1 Weapon 1 | . . 1 Highest Loss Streak 2 | . . 2 To Critical Strikes . | . . . Average Backups 7 | . 5 9 Power 1 | . 1 1 Propulsion . | . . . Utility 4 | . 2 5 Weapon 2 | . 1 2 Tool/Special . | . . . Unused Backups 6 | . . 6 Power 1 | . . 1 Propulsion . | . . . Utility 4 | . . 4 Weapon 1 | . . 1 Tool/Special . | . . . Average Slot Usage (%) 92 | . 97 90 Engine 14 | . 14 14 Leg 21 | . 28 19 Storage 14 | . 14 14 Protection 13 | . 12 14 Energy Gun 9 | . . 13 Ballistic Gun 7 | . 25 . Ballistic Cannon 10 | . 2 14 Peak Build Rating 10 | 6 8 10 Average Rating 8 | 4 7 8 On Entrance 4 | . 6 8 Avg Prop Armor Cover (%) . | . . . Naked Turns . | . . . Heaviest Build 22 | 12 19 22 Greatest Support 20 | 20 20 20 Greatest Overweight (x) 7 | . . 7 Average Overweight (x) . | . . . Largest Inventory Capacity 10 | 8 10 10 Average Capacity 9 | 6 8 10 Most Carried 10 | 2 8 10 Average Carried 7 | . 5 9 Final Capacity 10 | 8 10 10 Final Carried 9 | 2 8 9 Class Distribution -------------------- 100% | Mutant Dominant Class ---------------- Mutant | -10/Materials Mutant | -10/Mines Resources | -11 -10 -10 ----------- Run | Yrd Mat Min Matter Collected 587 | 222 128 237 Remotely . | . . . Salvage Created 470 | . 289 181 Parts 18 | . 12 6 Haulers Intercepted 2 | . 2 . Recyclers Shooed 1 | . 1 . Parts Field Recycled . | . . . Retrieved Matter . | . . . Parts Self-Destructed . | . . . Prevented . | . . . Parts Restored . | . . . Kills | -11 -10 -10 ------- Run | Yrd Mat Min Combat Hostiles Destroyed 13 | . 4 9 Guns 6 | . 4 2 Cannons 7 | . . 7 Classes Destroyed 4 | . 3 1 Hauler 2 | . 2 . Mechanic 1 | . 1 . Grunt 8 | . 4 4 Assembled 5 | . . 5 Best Kill Streak 5 | . 3 5 Combat Bots Only 5 | . 2 5 Max Kills in Single Turn 1 | . 1 1 Gunslinging . | . . . Exploded . | . . . Melee . | . . . Uniques/NPCs Destroyed . | . . . Combat | -11 -10 -10 -------- Run | Yrd Mat Min Hostile Shots Fired 60 | . 21 39 Missed 17 | . 7 10 Hits 43 | . 14 29 Melee 10 | . . 10 Projectile 33 | . 14 19 AOE 3 | . . 3 Critical Strikes 1 | . . 1 Damage Taken 887 | . 189 698 Core 251 | . 15 236 Absorbed by Shields . | . . . Redirected to Shielding 94 | . 22 72 Core Remaining (%) 100 | 100 . . Volleys Fired 47 | . 23 24 Largest 2 | . 2 2 Hottest 95 | . 50 95 Shots Fired 89 | . 44 45 Gun 63 | . 42 21 Cannon 26 | . 2 24 Launcher . | . . . Special . | . . . Kinetic 73 | . 44 29 Thermal 16 | . . 16 Explosive . | . . . Electromagnetic . | . . . Robot Hit Streak 14 | . 14 7 Robot Miss Streak 3 | . 2 3 Penetration Max . | . . . Secondary Targets . | . . . Shots Hit Robots 59 | . 30 29 Core Hits 30 | . 16 14 Critical Kills . | . . . Critical Parts Destroyed . | . . . Critical Strikes . | . . . Melee Attacks . | . . . Impact . | . . . Slashing . | . . . Piercing . | . . . Sneak Attacks . | . . . Combat Hostiles . | . . . Follow-up Attacks . | . . . Damage Inflicted 832 | . 370 462 Guns 533 | . 355 178 Cannons 299 | . 15 284 Explosions . | . . . Melee . | . . . Ramming . | . . . Kinetic 710 | . 370 340 Thermal 122 | . . 122 Explosive . | . . . Electromagnetic . | . . . Impact . | . . . Slashing . | . . . Piercing . | . . . Highest Corruption . | . . . Average Corruption . | . . . Corruption Purged . | . . . Corruption Blocked . | . . . Overload Shots . | . . . Overflow Damage 2 | . . 2 Projectiles 2 | . . 2 Explosions . | . . . Melee . | . . . Knockbacks . | . . . Impact . | . . . Kinetic . | . . . Secondary . | . . . Self-Inflicted Damage . | . . . Shots . | . . . Rammed . | . . . Targets Rammed 1 | . 1 . Kicked 1 | . 1 . Crushed . | . . . Highest Temperature 303 | . 2 303 Average Temperature 107 | . 2 113 Received Heat Transfer 203 | . 102 101 Siege Activations . | . . . Martial Activations . | . . . Shielding Activations . | . . . Robots Disrupted . | . . . Combat Hostiles . | . . . Robots Corrupted . | . . . Combat Hostiles . | . . . Parts Fried . | . . . Impact Corruptions . | . . . Robots Melted . | . . . Combat Hostiles . | . . . Parts Melted . | . . . Heat Transferred 296 | . . 296 Parts Sabotaged . | . . . Parts Stolen . | . . . Parts Stripped . | . . . Power Chain Reactions . | . . . Alert | -11 -10 -10 ------- Run | Yrd Mat Min Maximum Alert Level . | . . . Low Security (%) 100 | 100 100 100 Level 1 . | . . . Level 2 . | . . . Level 3 . | . . . Level 4 . | . . . Level 5 . | . . . High Security . | . . . Max Security . | . . . Peak Influence 63 | . 63 50 Initial . | . . . Average 8 | . 18 5 Influence Increases 210 | . 110 100 Destroy 0b10 Robot/C 160 | . 80 80 Destroy 0b10 Robot/NC 15 | . 15 . Destroy Leader 34 | . 14 20 Destroy Structure 1 | . 1 . Influence Decreases 210 | . 110 100 Time Decay 210 | . 110 100 Squads Dispatched . | . . . Investigation . | . . . Extermination . | . . . Reinforcement . | . . . Assault . | . . . Garrison . | . . . Intercept . | . . . Searches Triggered . | . . . Construction Impeded . | . . . Haulers Reinforced . | . . . Active Scanning Responses . | . . . Cargo Convoy Interrupts . | . . . Stealth | -11 -10 -10 --------- Run | Yrd Mat Min Distress Signals 1 | . 1 . Communications Jammed . | . . . Distress Signals . | . . . Times Spotted 18 | . 7 11 Peak Tracking Total 5 | . 3 5 Tactical Retreats 1 | . . 1 Traps | -11 -10 -10 ------- Run | Yrd Mat Min Traps Triggered . | . . . Indirectly . | . . . Trap Hack Attempts . | . . . Triggered . | . . . Disarmed . | . . . Reprogrammed . | . . . Reused . | . . . Traps Extracted . | . . . Installed . | . . . Triggered . | . . . Machines | -11 -10 -10 ---------- Run | Yrd Mat Min Machines Disabled . | . . . Max in Single Turn . | . . . Machines Repaired . | . . . Machines Dismantled . | . . . Machines Sabotaged . | . . . Overloaded Fab Kills . | . . . Hacking | -11 -10 -10 --------- Run | Yrd Mat Min Machines Accessed 1 | . 1 . Terminals 1 | . 1 . Fabricators . | . . . Repair Stations . | . . . Recycling Units . | . . . Scanalyzers . | . . . Garrison Access . | . . . Total Hacks 1 | . 1 . Successful 1 | . 1 . Failed . | . . . Catastrophic . | . . . Database Lockouts . | . . . Manual 2 | . 2 . Terminals 1 | . 1 . Fabricators . | . . . Repair Stations . | . . . Recycling Units . | . . . Scanalyzers . | . . . Garrison Access . | . . . Terminal Hacks 1 | . 1 . Hauler Manifests 1 | . 1 . Fabricator Hacks . | . . . Repair Station Hacks . | . . . Recycling Unit Hacks . | . . . Scanalyzer . | . . . Garrison Access Hacks . | . . . Unauthorized Hacks . | . . . Terminals . | . . . Fabricators . | . . . Repair Stations . | . . . Recycling Units . | . . . Scanalyzers . | . . . Garrison Access . | . . . Data Cores Recovered . | . . . Used . | . . . Hacking Detections . | . . . Full Trace Events . | . . . Feedback Events . | . . . Feedback Blocked . | . . . Robot Schematics Acquired . | . . . Robots Built . | . . . Authchips . | . . . Time . | . . . Total Robot Build Rating . | . . . Part Schematics Acquired . | . . . Parts Built . | . . . Authchips . | . . . Time . | . . . Total Part Build Rating . | . . . Part Studies Acquired . | . . . Parts Repaired . | . . . Time . | . . . Parts Recycled . | . . . Recycled Matter . | . . . Retrieved Matter . | . . . Retrieved Components . | . . . Parts Scanalyzed . | . . . Part Schematics Acquired . | . . . Parts Damaged . | . . . Bothacking | -11 -10 -10 ------------ Run | Yrd Mat Min Used RIF Installer . | . . . Robots Hacked . | . . . Non-combat . | . . . Combat . | . . . Robot Hacks Applied . | . . . Relay Couplers Released . | . . . Fabnet Peak Effective % . | . . . Robots Rewired . | . . . Allies Hacked . | . . . Hacks Repelled . | . . . Allies | -11 -10 -10 -------- Run | Yrd Mat Min Total Allies . | . . . Largest Group . | . . . Highest-Rated Group . | . . . Highest-Rated Ally . | . . . Total Orders . | . . . Ally Attacks . | . . . Total Damage . | . . . Kills . | . . . Allies Corrupted . | . . . Allies Melted . | . . . Intel | -11 -10 -10 ------- Run | Yrd Mat Min Active Infowar (turns) . | . . . Robot Analysis Total . | . . . Derelict Logs Recovered . | . . . Drone Launches . | . . . Drone Recoveries . | . . . Exploration | -11 -10 -10 ------------- Run | Yrd Mat Min Turns Passed 1315 | 78 345 892 Spaces Moved 614 | 58 207 349 Core 12 | 2 . 10 Treads . | . . . Legs 602 | 56 207 339 Wheels . | . . . Hover . | . . . Flight . | . . . Fastest Speed 50 | 50 120 120 Average Speed 147 | 117 120 168 Slowest Speed 400 | 120 120 400 Overloaded Moves . | . . . Propulsion Burnouts . | . . . Robots Hopped . | . . . Potential Cave-ins . | . . . Cave-ins Triggered . | . . . Exploration Rate (%) 32 | 5 34 59 Regions Visited 2 Branch Regions 1 Pre-discovered Areas . | . . . Known Exits Taken . | . . . Unknown Exits Taken 2 | 1 1 . Scrap Searched 1 | . . 1 Spaces Dug . | . . . Terrain Destroyed . | . . . Melee . | . . . Projectile . | . . . AOE . | . . . Terrain Rammed . | . . . Walls Destroyed . | . . . Machines Disabled . | . . . Actions | -11 -10 -10 --------- Run | Yrd Mat Min Total 931 | 65 258 608 Wait 244 | . 20 224 Move 612 | 57 206 349 Hop . | . . . Pick Up 11 | 2 5 4 Fast Attach 8 | 6 1 1 Attach 1 | . . 1 Detach . | . . . Swap 5 | . 2 3 Drop 2 | . . 2 Fire 47 | . 23 24 Melee . | . . . Ram . | . . . Kick 1 | . 1 . Crush . | . . . Escape Stasis . | . . . Rewire . | . . . Trap . | . . . Miscellaneous . | . . . Route ------- -11/Scrapyard -10/Materials -10/Mines History --------- Turn | Location | Event 2 | -11/Scrapyard | Met Revision 17 26 | -11/Scrapyard | Discovered new exit (range 16) 79 | -11/Scrapyard | Entered Materials 300 | -10/Materials | Build established: Mutant 332 | -10/Materials | Discovered new exit (range 6) 424 | -10/Materials | Entered Mines 445 | -10/Mines | Met a Derelict bent on vengeance 814 | -10/Mines | Found a damaged Exp. Sensor Array with a note attached 819 | -10/Mines | Found Prototype Device 971 | -10/Mines | Assembled infested the area 976 | -10/Mines | Assisted by a Guerilla fighting off Assembled 1042 | -10/Mines | Core integrity fell below 50% 1315 | -10/Mines | Core integrity fell below 20% 1316 | -10/Mines | Destroyed by D-53 Grenadier with Mini Grenade Launcher Last Messages --------------- 01024_ Destroyed Asb. Hover Unit. 01024_ as-50859 destroyed. 01028_ Aluminum Leg severed. 01030_ Destroyed Asb. Hover Unit. 01030_ Weapon Shielding destroyed. 01033_ Acquired Aluminum Leg. 01040_ as-43391 destroyed. 01052_ as-83162 destroyed. 01055_ as-63937 destroyed. 01062_ Aluminum Leg destroyed. 01062_ as-58319 destroyed. 01064_ Acquired 16 matter. 01068_ Acquired 5 matter. 01153_ Acquired 7 matter. 01302_ K-01 Serf collects debris. 01307_ Acquired 10 matter. 01308_ K-01 Serf collects debris. 01314_ Lgt. Cannon destroyed. 01314_ K-01 Serf collects debris. 01316_ The unstable cave ceiling collapses. Map ----- +----------------------------------------------------+ | ???????## ?????????? ???????????????????? | | ??????## ##???????? ??????????????????? | | ??????# % #???????? ?????????????????? | | ??????# ##??????? ??????????????????? | | ??????# ???????? =???????????????????? | | ??????? ???????# ???????????????????? | | ???????? % #??????? ????????????????????? | | ?####??## #??????? #????????????????????? | | ## #?#" #??????? #????????????????????? | | # ##% ##??????# ##???????????????????? | | # *%! ##????## ##??????????????????? | | # ###?## ##?????????????????? | | # ! ### #?????????????????? | | ?# #?????????????????? | | ?## ##?????????????????? | | ??# ##??????????????????? | | ??## ## ##???????????????????? | | ???# #### ## ##???????????????????? | | ???## ##??###### #???????????????????? | | ?######?????????## #???????????????????? | | ## ######??????## ##???????????????????? | | # ##?????# ######????????????????? | | # ##????# ! ## ###??????????????? | | ## ## ##???## # #??????????????? | | ?###?## ##???## ## ##?????????????? | | ??????# ##???# d @ #?????????????? | | ??????## #???# d# ###?????????????? | | ???????## #???# ## ########???????? | | ????????## #???# ## #???????? | | ????????## ##### ##%k ### #???????? | | ???###### ## #?# #???????? | | ??## ## ######### #?# #???????? | | ??# #???????### #?# #???????? | | ??# #?????????## ## #???????? | | ??## #??????????## ## #???????? | | ???## ##??????????## ### #???????? | | ????## ## #####???????####?# #???????? | | ?????## #### = ####?????????# #???????? | | ??????####??# ##????????# ##??????? | | ????????????# ## #???????## ##?????? | | ????????????#!!### #???????# #?????? | | ???########?# #?# #?###???# #?????? | | ???# ### !### ##?# #?## ##?????? | | ???# ## ##??# ## #??????? | | ???# """ ## ### #???# ##??????? | | ???# """ ## #?# #???# ##???????? | | ???# """ ##=### #???## ##????????? | | #### ## ## ##????## #?????????? | | ## ## ###??????## #?????????? | | ### ######### ##?????????## #?????????? | +----------------------------------------------------+ Best States ------------- Heat Dissipation 25 Energy Generation 10 Energy Capacity 250 Matter Stores 300 Matter Capacity 300 Sight Range 16 Terrain Scan Density 10 Weapon Shielding 33 Evasion (%) 55 Item Schematics ----------------- None Robot Schematics ------------------ None Fabricated ------------ Nothing Repaired ---------- Nothing Studied --------- None Alien Tech Used ----------------- None Achievements -------------- You Again Challenges ------------ None Game ------ Seed NodeMakeshiftProtection Manual? 0 Play Time 00:11:20 Cumulative 158.1 hours Start 2026.03.01 @ 18:33:35 End 2026.03.01 @ 23:16:25 Sessions 3 Manual Loads 0 Difficulty Rogue Special Mode None Game No. 275 Rogue 275 Adventurer 0 Explorer 0 Win Type - Total 1 Types 1/0/0/0/0/0/0/0/0/0 Lore% 53 Gallery% 55 Achievement% 30 Wizard Run 0 Options --------- Layout 0 ASCII 0 Keyboard 1 Movement Numpad Keybinds 0 Fullscreen 2 Font 18/SmallcapsGlow Map View 76x50 Zoom Use 0% Tactical HUD 1 Map Filters NONE Filters NONE Steam 1 RUN: a71eabe5-9d45-441b-8951-3e2769a7ef7b